[Event "*** Qualifier 3: Titled Tuesday 3|2 Blitz"]
[Site "Chess.com"]
[Date "2017.04.18"]
[Round "7"]
[White "alekroth64"]
[Black "saraswathii"]
[Result "0-1"]
[WhiteElo "2240"]
[BlackElo "2226"]
[TimeControl "180+2"]
[EndTime "14:33:28 PDT"]
[Termination "saraswathii won by resignation"]

1. d4 {[%clk 0:03:02]} 1... d5 {[%clk 0:02:59]} 2. c4 {[%clk 0:03:01.9]} 2... e6
{[%clk 0:02:57.8]} 3. Nf3 {[%clk 0:02:52.1]} 3... Nf6 {[%clk 0:02:58.3]} 4. Bg5
{[%clk 0:02:52.2]} 4... c5 {[%clk 0:02:55.4]} 5. cxd5 {[%clk 0:02:51.3]} 5...
exd5 {[%clk 0:02:54.6]} 6. Nc3 {[%clk 0:02:50.4]} 6... Be6 {[%clk 0:02:55.1]} 7.
g3 {[%clk 0:02:50.3]} 7... Nc6 {[%clk 0:02:54.2]} 8. Bg2 {[%clk 0:02:49.5]} 8...
c4 {[%clk 0:02:44.4]} 9. O-O {[%clk 0:02:49.3]} 9... h6 {[%clk 0:02:41.9]} 10.
Bxf6 {[%clk 0:02:48]} 10... Qxf6 {[%clk 0:02:42.2]} 11. b3 {[%clk 0:02:48.2]}
11... Bb4 {[%clk 0:02:39.8]} 12. Rc1 {[%clk 0:02:43.1]} 12... O-O {[%clk
0:02:34.4]} 13. bxc4 {[%clk 0:02:33]} 13... dxc4 {[%clk 0:02:34.2]} 14. Ne4
{[%clk 0:02:15.3]} 14... Qf5 {[%clk 0:02:25.9]} 15. Nh4 {[%clk 0:02:10.7]} 15...
Qa5 {[%clk 0:02:25.3]} 16. e3 {[%clk 0:01:59.5]} 16... Qxa2 {[%clk 0:02:19]} 17.
d5 {[%clk 0:01:51.9]} 17... Rfd8 {[%clk 0:02:16.4]} 18. dxe6 {[%clk 0:01:50.5]}
18... Rxd1 {[%clk 0:02:14.7]} 19. exf7+ {[%clk 0:01:51.2]} 19... Kxf7 {[%clk
0:02:15.4]} 20. Rfxd1 {[%clk 0:01:44.1]} 20... Rd8 {[%clk 0:02:12.8]} 21. Rf1
{[%clk 0:01:38]} 21... Ne5 {[%clk 0:02:05.9]} 22. Ra1 {[%clk 0:01:22.9]} 22...
Qe2 {[%clk 0:01:58]} 23. Rxa7 {[%clk 0:01:20.3]} 23... Rd7 {[%clk 0:01:51.2]}
24. f4 {[%clk 0:01:08.8]} 24... Qxe3+ {[%clk 0:01:49]} 25. Kh1 {[%clk
0:01:09.5]} 25... Qxa7 {[%clk 0:01:47.8]} 26. fxe5+ {[%clk 0:01:08.3]} 26... Ke8
{[%clk 0:01:45.8]} 27. e6 {[%clk 0:01:03]} 27... Rc7 {[%clk 0:01:33.2]} 28. Ng6
{[%clk 0:01:00.1]} 28... c3 {[%clk 0:01:18.9]} 29. Bf3 {[%clk 0:00:58.7]} 29...
Qe3 {[%clk 0:01:13.3]} 30. Ne5 {[%clk 0:00:50.8]} 30... c2 {[%clk 0:01:07.6]}
31. Bh5+ {[%clk 0:00:50.8]} 31... Kd8 {[%clk 0:01:01.2]} 32. Nf7+ {[%clk
0:00:48]} 32... Rxf7 {[%clk 0:00:58.2]} 33. exf7 {[%clk 0:00:43.8]} 33... Qxe4+
{[%clk 0:00:57.9]} 34. Bf3 {[%clk 0:00:40.1]} 34... c1=Q {[%clk 0:00:56.8]} 0-1

[Event "*** Qualifier 3: Titled Tuesday 3|2 Blitz"]
[Site "Chess.com"]
[Date "2017.04.18"]
[Round "7"]
[White "Keranke"]
[Black "Cayse"]
[Result "1-0"]
[WhiteElo "2643"]
[BlackElo "2633"]
[TimeControl "180+2"]
[EndTime "14:33:45 PDT"]
[Termination "Keranke won by resignation"]

1. d4 {[%clk 0:03:02]} 1... Nf6 {[%clk 0:03:00]} 2. Nf3 {[%clk 0:03:02.8]} 2...
e6 {[%clk 0:03:00.7]} 3. Bf4 {[%clk 0:03:04.1]} 3... d5 {[%clk 0:03:01.1]} 4. e3
{[%clk 0:03:05.4]} 4... Bd6 {[%clk 0:02:58.8]} 5. Ne5 {[%clk 0:03:05.6]} 5... c6
{[%clk 0:02:38.9]} 6. Nd2 {[%clk 0:03:05.1]} 6... Qc7 {[%clk 0:02:39.5]} 7. Bd3
{[%clk 0:03:02.2]} 7... Nbd7 {[%clk 0:02:36.7]} 8. Ndf3 {[%clk 0:03:01.2]} 8...
g6 {[%clk 0:01:50.4]} 9. g4 {[%clk 0:02:39.7]} 9... Ne4 {[%clk 0:01:44.7]} 10.
g5 {[%clk 0:02:31.8]} 10... c5 {[%clk 0:01:11.9]} 11. c3 {[%clk 0:02:32.2]}
11... O-O {[%clk 0:01:07.7]} 12. h4 {[%clk 0:02:26.7]} 12... f6 {[%clk
0:01:06.4]} 13. gxf6 {[%clk 0:02:26]} 13... Ndxf6 {[%clk 0:01:07.8]} 14. Ng5
{[%clk 0:02:19.1]} 14... Nh5 {[%clk 0:00:57.5]} 15. Bxe4 {[%clk 0:01:32.8]}
15... dxe4 {[%clk 0:00:56.9]} 16. Bh2 {[%clk 0:01:29.9]} 16... cxd4 {[%clk
0:00:41.4]} 17. exd4 {[%clk 0:01:31.2]} 17... e3 {[%clk 0:00:34]} 18. fxe3
{[%clk 0:01:30.3]} 18... Bxe5 {[%clk 0:00:32.5]} 19. Bxe5 {[%clk 0:01:30.9]}
19... Qc6 {[%clk 0:00:33.8]} 20. Rg1 {[%clk 0:01:27.1]} 20... h6 {[%clk
0:00:28.7]} 21. Qd3 {[%clk 0:00:39.6]} 21... Rf5 {[%clk 0:00:23.6]} 22. e4
{[%clk 0:00:40.9]} 22... Rxe5 {[%clk 0:00:12.2]} 23. dxe5 {[%clk 0:00:41.4]}
23... hxg5 {[%clk 0:00:13.7]} 24. Qd8+ {[%clk 0:00:42]} 24... Kh7 {[%clk
0:00:13.7]} 25. O-O-O {[%clk 0:00:40.1]} 25... b6 {[%clk 0:00:12.3]} 26. Rgf1
{[%clk 0:00:35.4]} 26... Ba6 {[%clk 0:00:10.4]} 27. Rf7+ {[%clk 0:00:36]} 1-0

[Event "*** Qualifier 3: Titled Tuesday 3|2 Blitz"]
[Site "Chess.com"]
[Date "2017.04.18"]
[Round "7"]
[White "ABDELAZEEZ-M"]
[Black "Rating-Schmating"]
[Result "0-1"]
[WhiteElo "2118"]
[BlackElo "2298"]
[TimeControl "180+2"]
[EndTime "14:33:48 PDT"]
[Termination "Rating-Schmating won by resignation"]

1. d4 {[%clk 0:02:59]} 1... Nf6 {[%clk 0:03:00.3]} 2. c4 {[%clk 0:02:59.7]} 2...
e6 {[%clk 0:03:01.4]} 3. Nf3 {[%clk 0:02:58.3]} 3... Bb4+ {[%clk 0:03:00.6]} 4.
Nbd2 {[%clk 0:02:56.8]} 4... c5 {[%clk 0:03:00.4]} 5. dxc5 {[%clk 0:02:50.4]}
5... Bxc5 {[%clk 0:02:58.9]} 6. g3 {[%clk 0:02:47.5]} 6... b6 {[%clk 0:02:59.5]}
7. Bg2 {[%clk 0:02:47.1]} 7... Bb7 {[%clk 0:03:00.8]} 8. O-O {[%clk 0:02:47.1]}
8... Be7 {[%clk 0:03:01.8]} 9. Qc2 {[%clk 0:02:45.8]} 9... d6 {[%clk 0:03:02.9]}
10. e4 {[%clk 0:02:46.2]} 10... Nbd7 {[%clk 0:03:04.3]} 11. Re1 {[%clk
0:02:45.7]} 11... Qc7 {[%clk 0:03:04.8]} 12. b3 {[%clk 0:02:39.2]} 12... a6
{[%clk 0:03:05.6]} 13. Bb2 {[%clk 0:02:38]} 13... O-O {[%clk 0:03:04.1]} 14.
Rac1 {[%clk 0:02:38.5]} 14... Rfe8 {[%clk 0:03:04.5]} 15. Nf1 {[%clk 0:02:37.2]}
15... Nc5 {[%clk 0:02:59]} 16. N3d2 {[%clk 0:02:37]} 16... Rad8 {[%clk 0:02:58]}
17. Ne3 {[%clk 0:02:34.2]} 17... Qb8 {[%clk 0:02:55.9]} 18. b4 {[%clk
0:02:31.1]} 18... Ncd7 {[%clk 0:02:55]} 19. a3 {[%clk 0:02:31.3]} 19... Rc8
{[%clk 0:02:55.6]} 20. Qb3 {[%clk 0:02:31.7]} 20... Qa8 {[%clk 0:02:51.6]} 21.
Qd3 {[%clk 0:02:21.9]} 21... Ne5 {[%clk 0:02:49.4]} 22. Bxe5 {[%clk 0:02:21.8]}
22... dxe5 {[%clk 0:02:51.3]} 23. Red1 {[%clk 0:02:21.7]} 23... Red8 {[%clk
0:02:52.3]} 24. Qb1 {[%clk 0:02:20.7]} 24... Rd4 {[%clk 0:02:46.8]} 25. f3
{[%clk 0:02:14.4]} 25... Rcd8 {[%clk 0:02:46.2]} 26. Nb3 {[%clk 0:02:14.9]}
26... Rxd1+ {[%clk 0:02:44.4]} 27. Rxd1 {[%clk 0:02:15.7]} 27... Rxd1+ {[%clk
0:02:45.3]} 28. Qxd1 {[%clk 0:02:16.3]} 28... Qd8 {[%clk 0:02:47.2]} 29. Qxd8+
{[%clk 0:02:16.4]} 29... Bxd8 {[%clk 0:02:49.1]} 30. c5 {[%clk 0:02:18]} 30...
bxc5 {[%clk 0:02:47.4]} 31. Nxc5 {[%clk 0:02:18.7]} 31... Bb6 {[%clk 0:02:43.9]}
32. Nc4 {[%clk 0:02:14.1]} 32... Bxc5+ {[%clk 0:02:44.8]} 33. bxc5 {[%clk
0:02:16]} 33... Nd7 {[%clk 0:02:46.1]} 34. Bf1 {[%clk 0:02:03.7]} 34... Nxc5
{[%clk 0:02:46.4]} 35. Nxe5 {[%clk 0:02:04.6]} 35... f6 {[%clk 0:02:45.6]} 36.
Nc4 {[%clk 0:02:04.5]} 36... Bc6 {[%clk 0:02:46.1]} 37. Nd6 {[%clk 0:02:04.5]}
37... Kf8 {[%clk 0:02:44.1]} 38. Kf2 {[%clk 0:02:02.5]} 38... Ke7 {[%clk
0:02:44.6]} 39. Nc4 {[%clk 0:02:03]} 39... Bb5 {[%clk 0:02:44.9]} 40. Ke3 {[%clk
0:02:01.5]} 40... Bxc4 {[%clk 0:02:43.6]} 41. Bxc4 {[%clk 0:02:00.6]} 41... e5
{[%clk 0:02:45.1]} 42. Kd2 {[%clk 0:01:59.5]} 42... Kd6 {[%clk 0:02:45.3]} 43.
Kc3 {[%clk 0:02:00.5]} 43... a5 {[%clk 0:02:46.6]} 44. Bg8 {[%clk 0:01:59.7]}
44... h6 {[%clk 0:02:47.2]} 45. Bc4 {[%clk 0:01:58.2]} 45... Na4+ {[%clk
0:02:44.9]} 46. Kb3 {[%clk 0:01:58.7]} 46... Nb6 {[%clk 0:02:46.2]} 47. a4
{[%clk 0:01:52.5]} 47... Kc5 {[%clk 0:02:47]} 48. Be2 {[%clk 0:01:43.8]} 48...
Kd4 {[%clk 0:02:48]} 49. Kc2 {[%clk 0:01:38.1]} 49... Nxa4 {[%clk 0:02:48.6]}
50. Bb5 {[%clk 0:01:34.8]} 50... Nc5 {[%clk 0:02:48.3]} 51. Be2 {[%clk
0:01:31.1]} 51... a4 {[%clk 0:02:35.9]} 52. Bd1 {[%clk 0:01:31.6]} 52... Ke3
{[%clk 0:02:36.9]} 53. Kc3 {[%clk 0:01:32.2]} 53... a3 {[%clk 0:02:37]} 54. Kc2
{[%clk 0:01:26.8]} 54... Kd4 {[%clk 0:02:31.6]} 55. Be2 {[%clk 0:01:25.2]} 55...
a2 {[%clk 0:02:27.8]} 56. Kb2 {[%clk 0:01:25.7]} 56... Na4+ {[%clk 0:02:29]} 57.
Ka1 {[%clk 0:01:16.8]} 57... Ke3 {[%clk 0:02:28.1]} 58. Ba6 {[%clk 0:01:18.7]}
58... Nc3 {[%clk 0:02:26.7]} 59. Bc4 {[%clk 0:01:17.2]} 59... Kxf3 {[%clk
0:02:27.7]} 60. Bd5 {[%clk 0:01:17.7]} 60... f5 {[%clk 0:02:23.8]} 61. exf5+
{[%clk 0:01:13.1]} 61... Nxd5 {[%clk 0:02:24.4]} 62. Kxa2 {[%clk 0:01:14.9]}
62... e4 {[%clk 0:02:26]} 63. Kb3 {[%clk 0:01:15.1]} 63... e3 {[%clk 0:02:27.4]}
64. Kc4 {[%clk 0:01:17]} 64... e2 {[%clk 0:02:28.6]} 65. Kxd5 {[%clk 0:01:17.9]}
65... e1=Q {[%clk 0:02:29.9]} 0-1

[Event "*** Qualifier 3: Titled Tuesday 3|2 Blitz"]
[Site "Chess.com"]
[Date "2017.04.18"]
[Round "7"]
[White "WanderingPuppet"]
[Black "aa175"]
[Result "1-0"]
[WhiteElo "2297"]
[BlackElo "1828"]
[TimeControl "180+2"]
[EndTime "14:34:04 PDT"]
[Termination "WanderingPuppet won by checkmate"]

1. e4 {[%clk 0:02:57.7]} 1... e5 {[%clk 0:02:56.7]} 2. Nf3 {[%clk 0:02:58.2]}
2... Nc6 {[%clk 0:02:55.4]} 3. Bb5 {[%clk 0:02:58.6]} 3... Nf6 {[%clk
0:02:55.4]} 4. O-O {[%clk 0:02:58.9]} 4... Bc5 {[%clk 0:02:37.4]} 5. c3 {[%clk
0:02:51.2]} 5... Nxe4 {[%clk 0:02:16.1]} 6. Qe2 {[%clk 0:02:44.9]} 6... Nxf2
{[%clk 0:01:58.3]} 7. d4 {[%clk 0:02:31.2]} 7... e4 {[%clk 0:00:59.3]} 8. Rxf2
{[%clk 0:02:09.1]} 8... O-O {[%clk 0:00:52.1]} 9. Qxe4 {[%clk 0:02:01.5]} 9...
d5 {[%clk 0:00:49.1]} 10. Qh4 {[%clk 0:01:47.8]} 10... Qxh4 {[%clk 0:00:43.1]}
11. Nxh4 {[%clk 0:01:48.1]} 11... Nxd4 {[%clk 0:00:44.7]} 12. cxd4 {[%clk
0:01:37.6]} 12... Bxd4 {[%clk 0:00:46.6]} 13. Nf3 {[%clk 0:01:31.7]} 13... Bxf2+
{[%clk 0:00:44.9]} 14. Kxf2 {[%clk 0:01:32.5]} 14... c6 {[%clk 0:00:46.8]} 15.
Bd3 {[%clk 0:01:32.2]} 15... Bg4 {[%clk 0:00:47.3]} 16. Ne5 {[%clk 0:01:31.6]}
16... Be6 {[%clk 0:00:45]} 17. Nc3 {[%clk 0:01:27]} 17... f6 {[%clk 0:00:45.3]}
18. Nf3 {[%clk 0:01:25.8]} 18... Kf7 {[%clk 0:00:46.7]} 19. Bf4 {[%clk
0:01:17.4]} 19... g5 {[%clk 0:00:42.9]} 20. Be3 {[%clk 0:01:08]} 20... h5 {[%clk
0:00:38.8]} 21. h4 {[%clk 0:00:49.6]} 21... g4 {[%clk 0:00:38]} 22. Ng1 {[%clk
0:00:50.5]} 22... f5 {[%clk 0:00:27.4]} 23. Nge2 {[%clk 0:00:49.7]} 23... b6
{[%clk 0:00:22.3]} 24. Nf4 {[%clk 0:00:32.4]} 24... c5 {[%clk 0:00:20.4]} 25.
Ncxd5 {[%clk 0:00:31.2]} 25... Rad8 {[%clk 0:00:18.6]} 26. Nxe6 {[%clk
0:00:27.4]} 26... Kxe6 {[%clk 0:00:12.4]} 27. Nf4+ {[%clk 0:00:22.3]} 27... Ke5
{[%clk 0:00:06.1]} 28. Bd2 {[%clk 0:00:21.9]} 28... Kd4 {[%clk 0:00:04.2]} 29.
Bc3# {[%clk 0:00:19.7]} 1-0

[Event "*** Qualifier 3: Titled Tuesday 3|2 Blitz"]
[Site "Chess.com"]
[Date "2017.04.18"]
[Round "7"]
[White "RaphaeI"]
[Black "ChessQueen"]
[Result "0-1"]
[WhiteElo "2403"]
[BlackElo "2674"]
[TimeControl "180+2"]
[EndTime "14:34:05 PDT"]
[Termination "ChessQueen won by resignation"]

1. Nf3 {[%clk 0:03:02]} 1... Nf6 {[%clk 0:02:59.6]} 2. c4 {[%clk 0:03:02]} 2...
b6 {[%clk 0:02:59.9]} 3. g3 {[%clk 0:03:02]} 3... Bb7 {[%clk 0:03:00.7]} 4. Bg2
{[%clk 0:03:03]} 4... c5 {[%clk 0:03:01.6]} 5. O-O {[%clk 0:03:01.7]} 5... e6
{[%clk 0:03:01.4]} 6. Nc3 {[%clk 0:03:00.8]} 6... Be7 {[%clk 0:03:01]} 7. Re1
{[%clk 0:03:01.1]} 7... d5 {[%clk 0:02:56]} 8. cxd5 {[%clk 0:02:57.5]} 8... exd5
{[%clk 0:02:45]} 9. d4 {[%clk 0:02:58]} 9... O-O {[%clk 0:02:44.7]} 10. Bf4
{[%clk 0:02:58.3]} 10... Na6 {[%clk 0:02:42.8]} 11. Ne5 {[%clk 0:02:45.3]} 11...
cxd4 {[%clk 0:02:40.5]} 12. Qxd4 {[%clk 0:02:42.3]} 12... Bc5 {[%clk 0:02:37.9]}
13. Qa4 {[%clk 0:02:13.8]} 13... Qe8 {[%clk 0:02:21.5]} 14. a3 {[%clk
0:01:22.4]} 14... Qxa4 {[%clk 0:02:02]} 15. Nxa4 {[%clk 0:01:22.5]} 15... Rfe8
{[%clk 0:02:03.1]} 16. Rad1 {[%clk 0:00:36.1]} 16... Ne4 {[%clk 0:01:49.3]} 17.
Bxe4 {[%clk 0:00:26.8]} 17... dxe4 {[%clk 0:01:49.9]} 18. Rd7 {[%clk 0:00:28.3]}
18... Bc8 {[%clk 0:01:45.6]} 19. Nxc5 {[%clk 0:00:13.3]} 19... Nxc5 {[%clk
0:01:42.7]} 20. Rd4 {[%clk 0:00:13.3]} 20... g5 {[%clk 0:01:37.6]} 21. Bxg5
{[%clk 0:00:02.2]} 21... Rxe5 {[%clk 0:01:38]} 22. Bf6 {[%clk 0:00:03.4]} 22...
Re8 {[%clk 0:01:38.7]} 23. b4 {[%clk 0:00:03.4]} 23... Nd7 {[%clk 0:01:36.7]}
24. Bg5 {[%clk 0:00:04.8]} 24... Nf8 {[%clk 0:01:37.6]} 25. Rd6 {[%clk
0:00:03.9]} 25... Ba6 {[%clk 0:01:36.5]} 26. e3 {[%clk 0:00:03.4]} 26... Rac8
{[%clk 0:01:34.4]} 27. h4 {[%clk 0:00:04.4]} 27... Re6 {[%clk 0:01:32.2]} 28.
Red1 {[%clk 0:00:04.3]} 28... Bd3 {[%clk 0:01:31.8]} 29. Rd4 {[%clk 0:00:03.9]}
29... Rec6 {[%clk 0:01:31.5]} 30. Kh2 {[%clk 0:00:04.4]} 30... Ne6 {[%clk
0:01:30.9]} 31. Rd5 {[%clk 0:00:04.3]} 31... Kg7 {[%clk 0:01:29.6]} 32. g4
{[%clk 0:00:05.4]} 32... h6 {[%clk 0:01:17.4]} 33. Bf4 {[%clk 0:00:04.7]} 33...
Nxf4 {[%clk 0:01:18.1]} 34. exf4 {[%clk 0:00:06.6]} 34... Be2 {[%clk 0:01:19.4]}
35. Rg1 {[%clk 0:00:06.1]} 35... Rc3 {[%clk 0:01:17.7]} 36. h5 {[%clk
0:00:06.9]} 36... Rf3 {[%clk 0:01:17.2]} 37. g5 {[%clk 0:00:08.4]} 37... Rxf2+
{[%clk 0:01:16.6]} 38. Rg2 {[%clk 0:00:09]} 38... Rxg2+ {[%clk 0:01:17.3]} 39.
Kxg2 {[%clk 0:00:10.9]} 39... Bxh5 {[%clk 0:01:17.7]} 0-1

[Event "*** Qualifier 3: Titled Tuesday 3|2 Blitz"]
[Site "Chess.com"]
[Date "2017.04.18"]
[Round "7"]
[White "peteseeger"]
[Black "proxy6"]
[Result "0-1"]
[WhiteElo "2118"]
[BlackElo "2211"]
[TimeControl "180+2"]
[EndTime "14:34:06 PDT"]
[Termination "proxy6 won by resignation"]

1. e4 {[%clk 0:02:48.6]} 1... e5 {[%clk 0:02:59.4]} 2. Nf3 {[%clk 0:02:36.7]}
2... Nc6 {[%clk 0:03:00.5]} 3. Bc4 {[%clk 0:02:37]} 3... Bc5 {[%clk 0:03:00.6]}
4. O-O {[%clk 0:02:36]} 4... Nf6 {[%clk 0:02:59.6]} 5. d3 {[%clk 0:02:36.7]}
5... a6 {[%clk 0:02:58]} 6. c3 {[%clk 0:02:35.6]} 6... Ba7 {[%clk 0:02:59]} 7.
Bb3 {[%clk 0:02:33.9]} 7... O-O {[%clk 0:02:58.4]} 8. h3 {[%clk 0:02:32.8]} 8...
h6 {[%clk 0:02:58]} 9. Re1 {[%clk 0:02:33.3]} 9... d6 {[%clk 0:02:56.6]} 10.
Nbd2 {[%clk 0:02:33.7]} 10... Be6 {[%clk 0:02:48.5]} 11. Nf1 {[%clk 0:02:24.8]}
11... Re8 {[%clk 0:02:49]} 12. Be3 {[%clk 0:02:21.5]} 12... d5 {[%clk
0:02:44.7]} 13. Bxa7 {[%clk 0:02:17.3]} 13... Rxa7 {[%clk 0:02:46.6]} 14. Ng3
{[%clk 0:01:50.5]} 14... Ra8 {[%clk 0:02:42.2]} 15. Qe2 {[%clk 0:01:38.2]} 15...
Qd7 {[%clk 0:02:32.5]} 16. Rad1 {[%clk 0:01:30.1]} 16... d4 {[%clk 0:02:23]} 17.
Bxe6 {[%clk 0:01:29.4]} 17... fxe6 {[%clk 0:02:10.7]} 18. c4 {[%clk 0:01:29.6]}
18... Qf7 {[%clk 0:02:02]} 19. Rf1 {[%clk 0:01:28.8]} 19... Rf8 {[%clk
0:01:52.3]} 20. Rb1 {[%clk 0:01:28.6]} 20... Nh5 {[%clk 0:01:31.5]} 21. Nxh5
{[%clk 0:01:22.7]} 21... Qxh5 {[%clk 0:01:33.4]} 22. Nxd4 {[%clk 0:01:20.9]}
22... Qxe2 {[%clk 0:01:27.8]} 23. Nxe2 {[%clk 0:01:21.5]} 23... Rad8 {[%clk
0:01:28.7]} 24. Rbd1 {[%clk 0:01:21.7]} 24... Nb4 {[%clk 0:01:29.6]} 25. Nc1
{[%clk 0:01:21]} 25... Rd4 {[%clk 0:01:25.5]} 26. a3 {[%clk 0:01:19.3]} 26...
Nc6 {[%clk 0:01:26.4]} 27. f3 {[%clk 0:01:16.2]} 27... Rfd8 {[%clk 0:01:26.1]}
28. Kf2 {[%clk 0:01:16.2]} 28... Na5 {[%clk 0:01:18.7]} 29. Ke2 {[%clk
0:01:11.7]} 29... b5 {[%clk 0:01:11.9]} 30. b4 {[%clk 0:01:11.1]} 30... Nc6
{[%clk 0:01:08.2]} 31. Nb3 {[%clk 0:01:09.6]} 31... R4d6 {[%clk 0:01:08.6]} 32.
c5 {[%clk 0:00:53.4]} 32... R6d7 {[%clk 0:01:08.2]} 33. f4 {[%clk 0:00:53.7]}
33... exf4 {[%clk 0:01:00.1]} 34. Rxf4 {[%clk 0:00:54.3]} 34... Ne5 {[%clk
0:01:01.4]} 35. Nc1 {[%clk 0:00:35.9]} 35... Nc4 {[%clk 0:00:53.3]} 36. Rf3
{[%clk 0:00:24.4]} 36... Nxa3 {[%clk 0:00:49.9]} 37. d4 {[%clk 0:00:21.2]} 37...
Nc2 {[%clk 0:00:49.1]} 0-1

[Event "*** Qualifier 3: Titled Tuesday 3|2 Blitz"]
[Site "Chess.com"]
[Date "2017.04.18"]
[Round "7"]
[White "tigra"]
[Black "Aygehovit1992"]
[Result "1-0"]
[WhiteElo "2608"]
[BlackElo "2426"]
[TimeControl "180+2"]
[EndTime "14:34:07 PDT"]
[Termination "tigra won on time"]

1. d4 {[%clk 0:03:01.9]} 1... d6 {[%clk 0:03:01.1]} 2. c4 {[%clk 0:03:02.3]}
2... g6 {[%clk 0:03:02]} 3. Nc3 {[%clk 0:03:03.4]} 3... Bg7 {[%clk 0:03:03.5]}
4. Bg5 {[%clk 0:03:03.3]} 4... Nc6 {[%clk 0:03:02.5]} 5. e3 {[%clk 0:03:04]}
5... h6 {[%clk 0:03:02.5]} 6. Bh4 {[%clk 0:03:04.7]} 6... Nf6 {[%clk 0:03:01.9]}
7. Bd3 {[%clk 0:03:03.7]} 7... e5 {[%clk 0:02:59.7]} 8. d5 {[%clk 0:03:03.4]}
8... Ne7 {[%clk 0:03:00.2]} 9. f3 {[%clk 0:02:59]} 9... c6 {[%clk 0:02:59.8]}
10. Nge2 {[%clk 0:02:54.8]} 10... O-O {[%clk 0:02:56.3]} 11. e4 {[%clk
0:02:54.2]} 11... Nh5 {[%clk 0:02:51.8]} 12. dxc6 {[%clk 0:02:49.5]} 12... bxc6
{[%clk 0:02:51.4]} 13. c5 {[%clk 0:02:51]} 13... g5 {[%clk 0:02:50.5]} 14. cxd6
{[%clk 0:02:49.6]} 14... gxh4 {[%clk 0:02:51.1]} 15. dxe7 {[%clk 0:02:50.6]}
15... Qxe7 {[%clk 0:02:52.7]} 16. Qa4 {[%clk 0:02:30.2]} 16... Rd8 {[%clk
0:02:51.4]} 17. O-O-O {[%clk 0:02:27.6]} 17... Qg5+ {[%clk 0:02:37.5]} 18. Kc2
{[%clk 0:02:28.3]} 18... Qxg2 {[%clk 0:02:39]} 19. Rhg1 {[%clk 0:02:27.1]} 19...
Qxf3 {[%clk 0:02:35.4]} 20. Qxc6 {[%clk 0:02:27.2]} 20... Be6 {[%clk 0:02:30.9]}
21. Qc7 {[%clk 0:02:22]} 21... Rac8 {[%clk 0:02:26.6]} 22. Qxe5 {[%clk
0:02:22.2]} 22... Rxd3 {[%clk 0:02:25.6]} 23. Rxd3 {[%clk 0:02:21.4]} 23...
Qxe2+ {[%clk 0:02:25.5]} 24. Rd2 {[%clk 0:02:21.3]} 24... Rxc3+ {[%clk
0:01:11.6]} 25. bxc3 {[%clk 0:02:21.6]} 25... Qc4 {[%clk 0:01:08.3]} 26. Rdg2
{[%clk 0:02:17.1]} 26... Qxa2+ {[%clk 0:01:07.9]} 27. Kd3 {[%clk 0:02:17.9]}
27... Qa6+ {[%clk 0:01:00.8]} 28. Ke3 {[%clk 0:02:18.7]} 28... Qb6+ {[%clk
0:00:47.8]} 29. Kf3 {[%clk 0:02:19.5]} 29... Ng3 {[%clk 0:00:40.6]} 30. Rxg3
{[%clk 0:02:08.5]} 30... hxg3 {[%clk 0:00:41]} 31. Qxg3 {[%clk 0:02:09.5]} 31...
Bg4+ {[%clk 0:00:18.5]} 32. Kxg4 {[%clk 0:02:10.6]} 32... Qg6+ {[%clk
0:00:19.1]} 33. Kf3 {[%clk 0:02:10.9]} 33... Qf6+ {[%clk 0:00:18.9]} 34. Ke2
{[%clk 0:02:09.3]} 34... Qa6+ {[%clk 0:00:17.3]} 35. Qd3 {[%clk 0:02:09.5]}
35... Qa2+ {[%clk 0:00:15.8]} 36. Qd2 {[%clk 0:02:10.6]} 36... Qc4+ {[%clk
0:00:16.3]} 37. Kf3 {[%clk 0:02:11.6]} 37... Qe6 {[%clk 0:00:14.7]} 38. Qd4
{[%clk 0:02:10.4]} 38... Qh3+ {[%clk 0:00:13.3]} 39. Ke2 {[%clk 0:02:06.4]}
39... Qxh2+ {[%clk 0:00:12.8]} 40. Kd3 {[%clk 0:02:06.7]} 40... Qh3+ {[%clk
0:00:09.2]} 41. Kc2 {[%clk 0:02:06.8]} 41... Qh2+ {[%clk 0:00:08.4]} 42. Kd1
{[%clk 0:02:03.4]} 42... Qh5+ {[%clk 0:00:05.3]} 43. Kc1 {[%clk 0:02:04]} 43...
f6 {[%clk 0:00:02]} 44. Qd8+ {[%clk 0:01:51]} 44... Kh7 {[%clk 0:00:02.4]} 45.
Qe7 {[%clk 0:01:51.4]} 1-0

[Event "*** Qualifier 3: Titled Tuesday 3|2 Blitz"]
[Site "Chess.com"]
[Date "2017.04.18"]
[Round "7"]
[White "roldieyi"]
[Black "DryCounty"]
[Result "0-1"]
[WhiteElo "2227"]
[BlackElo "2449"]
[TimeControl "180+2"]
[EndTime "14:34:07 PDT"]
[Termination "DryCounty won on time"]

1. d4 {[%clk 0:02:59]} 1... Nf6 {[%clk 0:03:00]} 2. Nf3 {[%clk 0:02:44.6]} 2...
g6 {[%clk 0:03:00.4]} 3. c4 {[%clk 0:02:43.5]} 3... Bg7 {[%clk 0:03:01.4]} 4.
Nc3 {[%clk 0:02:43.2]} 4... O-O {[%clk 0:03:02]} 5. e4 {[%clk 0:02:44]} 5... d6
{[%clk 0:03:03.2]} 6. Be2 {[%clk 0:02:44.8]} 6... e5 {[%clk 0:03:03.4]} 7. d5
{[%clk 0:02:45.5]} 7... Na6 {[%clk 0:03:03.5]} 8. O-O {[%clk 0:02:46]} 8... c5
{[%clk 0:02:57.8]} 9. a3 {[%clk 0:02:44.6]} 9... Ne8 {[%clk 0:02:57]} 10. Rb1
{[%clk 0:02:43.5]} 10... f5 {[%clk 0:02:56.9]} 11. Ng5 {[%clk 0:02:42]} 11...
Nf6 {[%clk 0:02:54.8]} 12. f3 {[%clk 0:02:40.6]} 12... Qe7 {[%clk 0:02:53.1]}
13. exf5 {[%clk 0:02:31.2]} 13... gxf5 {[%clk 0:02:52.7]} 14. f4 {[%clk
0:02:21.2]} 14... e4 {[%clk 0:02:49.5]} 15. Be3 {[%clk 0:02:19.7]} 15... h6
{[%clk 0:02:49]} 16. Nh3 {[%clk 0:02:19.6]} 16... Bd7 {[%clk 0:02:44.6]} 17. Kh1
{[%clk 0:02:17]} 17... Kh7 {[%clk 0:02:43.7]} 18. Rg1 {[%clk 0:02:17.9]} 18...
Rg8 {[%clk 0:02:43.3]} 19. Nf2 {[%clk 0:02:18.6]} 19... Bh8 {[%clk 0:02:43.5]}
20. Qc2 {[%clk 0:02:06.8]} 20... Rg6 {[%clk 0:02:37]} 21. g4 {[%clk 0:02:03.2]}
21... fxg4 {[%clk 0:02:34]} 22. Ncxe4 {[%clk 0:01:51.3]} 22... Nxe4 {[%clk
0:02:33.1]} 23. Nxe4 {[%clk 0:01:45.6]} 23... Bf5 {[%clk 0:02:32.8]} 24. Bd3
{[%clk 0:01:40.5]} 24... Re8 {[%clk 0:02:25.9]} 25. Ng5+ {[%clk 0:00:53.6]}
25... hxg5 {[%clk 0:02:02.8]} 26. Bxf5 {[%clk 0:00:47.5]} 26... Rg8 {[%clk
0:01:55.3]} 27. Rbe1 {[%clk 0:00:33.1]} 27... Qf7 {[%clk 0:01:55.3]} 28. fxg5
{[%clk 0:00:22.8]} 28... Kg7 {[%clk 0:01:55.6]} 29. Ref1 {[%clk 0:00:22.3]}
29... Nc7 {[%clk 0:01:36.5]} 30. Bd2 {[%clk 0:00:17.4]} 30... Re8 {[%clk
0:01:26.2]} 31. Bc3+ {[%clk 0:00:17.3]} 31... Re5 {[%clk 0:01:27.2]} 32. Qe4
{[%clk 0:00:11.1]} 32... Rxg5 {[%clk 0:01:24.1]} 33. Bxe5+ {[%clk 0:00:08]}
33... dxe5 {[%clk 0:01:24.8]} 0-1